Cogmind - Beta 13 @@@ ROGUE MODE // 2024.04.12 @ 10:05:16 Player: Sap Result: Core destroyed Performance ------------- Evolutions (1) 500 Regions Visited (2) 400 Robots Destroyed (51) 255 Value Destroyed (1348) 1348 Prototype IDs (2) 40 Alien Tech Used (0) 0 Bonus (0) 0 TOTAL SCORE: 2543 Bonus ------- None Cogmind --------- Core Integrity 0/400 Matter 300/300 Energy 100/100 System Corruption 0% Temperature Cool (0) Movement Core (400) Ox7 Location -9/Materials Parts ------- > --- POWER (1) -------- (None) > --- PROPULSION (3) --- (None) > --- UTILITY (3) ------ Large Storage Unit Improved Utility Shielding Hacking Suite > --- WEAPON (2) ------- (None) > --- INVENTORY (15) --- Cooled Ion Engine Light Deuterium Engine Light Deuterium Engine Large Storage Unit Large Storage Unit Improved Utility Shielding Improved Utility Shielding Improved Utility Shielding Peak State ------------ > --- POWER ------------ Light Deuterium Engine > --- PROPULSION ------- Light Treads Light Treads Light Treads > --- UTILITY ---------- Large Storage Unit Improved Utility Shielding Hacking Suite > --- WEAPON ----------- EM Pulse Cannon Heavy Flail > --- INVENTORY -------- Cooled Ion Engine Light Deuterium Engine Light Deuterium Engine Light Deuterium Engine Light Treads Light Treads Light Treads Large Storage Unit Large Storage Unit Improved Utility Shielding Improved Utility Shielding Improved Utility Shielding EM Pulse Cannon EM Pulse Cannon EM Pulse Cannon [Rating: 22] Favorites ----------- Power Ion Engine Engine Ion Engine Propulsion Light Treads Treads Light Treads Wheel Armored Wheel Utility Hacking Suite Device Field Recycling Unit Storage Large Storage Unit Hackware Hacking Suite Protection Improved Utility Shielding Weapon Datajack Energy Gun Heavy EM Pulse Gun Energy Cannon EM Pulse Cannon Ballistic Gun Light Assault Rifle Impact Weapon Heavy Flail Slashing Weapon Mining Claw Special Melee Weapon Datajack Build | -11 -10 -9 ------- Run | Yrd Mat Mat Slots Evolved 2 | . . 2 Power . | . . . Propulsion 1 | . . 1 Utility 1 | . . 1 Weapon . | . . . Parts Attached 47 | 6 20 21 Power 7 | 1 3 3 Engine 7 | 1 3 3 Core . | . . . Reactor . | . . . Propulsion 16 | 2 5 9 Treads 15 | 2 5 8 Leg . | . . . Wheel 1 | . . 1 Hover . | . . . Flight . | . . . Utility 6 | 1 4 1 Device 1 | . 1 . Storage 3 | 1 2 . Processor . | . . . Hackware 1 | . 1 . Protection 1 | . . 1 Artifact . | . . . Weapon 18 | 2 8 8 Energy Gun 5 | 1 4 . Energy Cannon 4 | . . 4 Ballistic Gun 3 | 1 2 . Ballistic Cannon . | . . . Launcher . | . . . Special Weapon . | . . . Impact Weapon 2 | . 1 1 Slashing Weapon 1 | . . 1 Piercing Weapon . | . . . Special Melee Weapon 3 | . 1 2 Unidentified Prototypes . | . . . Parts Lost 20 | . 7 13 Power 3 | . 1 2 Propulsion 8 | . 2 6 Utility . | . . . Weapon 9 | . 4 5 Highest Loss Streak 9 | . 2 9 To Critical Strikes . | . . . Average Slot Usage (%) 95 | . 96 92 Engine 12 | . 13 10 Treads 27 | . 26 30 Device 1 | . 2 . Storage 12 | . 14 11 Hackware 11 | . 11 11 Protection 3 | . . 10 Energy Gun 6 | . 9 . Energy Cannon 3 | . . 10 Ballistic Gun 7 | . 11 . Special Melee Weapon 6 | . 5 8 Naked Turns . | . . . Heaviest Build 87 | 13 87 39 Greatest Support 60 | 40 40 60 Greatest Overweight (x) 8 | 2 8 1 Average Overweight (x) . | . . . Largest Inventory Capacity 25 | 8 25 15 Average Capacity 11 | 7 9 15 Most Carried 15 | 7 14 15 Average Carried 10 | 4 8 13 Final Capacity 15 | 8 15 15 Final Carried 14 | 6 14 8 Class Distribution -------------------- 88% | Mutant 11% | Scavenger-Mutant Dominant Class ---------------- Mutant | -10/Materials Mutant | -9/Materials Resources | -11 -10 -9 ----------- Run | Yrd Mat Mat Matter Collected 632 | 245 197 190 Remotely . | . . . Salvage Created 1939 | 63 699 1177 Parts 106 | 3 38 65 Haulers Intercepted 1 | . 1 . Recyclers Shooed 2 | . 1 1 Parts Field Recycled 9 | . 9 . Retrieved Matter 38 | . 38 . Parts Self-Destructed . | . . . Prevented . | . . . Kills | -11 -10 -9 ------- Run | Yrd Mat Mat Combat Hostiles Destroyed 37 | . 13 24 Guns 10 | . 10 . Cannons 22 | . . 22 AOE 4 | . 2 2 Classes Destroyed 8 | 1 5 2 Builder 1 | . . 1 Hauler 1 | . 1 . Recycler 4 | 1 1 2 Operator 1 | . 1 . Watcher 7 | . 3 4 Swarmer 9 | . 3 6 Grunt 26 | . 10 16 Sentry 2 | . . 2 Best Kill Streak 6 | 1 4 6 Combat Bots Only 4 | . 3 4 Max Kills in Single Turn 1 | 1 1 1 Gunslinging . | . . . Exploded 1 | . 1 1 Melee . | . . . Uniques/NPCs Destroyed . | . . . Combat | -11 -10 -9 -------- Run | Yrd Mat Mat Hostile Shots Fired 316 | . 87 229 Missed 76 | . 18 58 Damage Taken 2587 | . 888 1699 Core 520 | . 108 412 Absorbed by Shields . | . . . Redirected to Shielding 20 | . . 20 Core Remaining (%) 78 | 100 56 . Volleys Fired 142 | 6 64 72 Largest 2 | 1 2 2 Hottest 126 | 40 110 126 Shots Fired 183 | 6 104 73 Gun 110 | 6 104 . Cannon 73 | . . 73 Launcher . | . . . Special . | . . . Kinetic 40 | . 40 . Thermal 8 | . 8 . Explosive . | . . . Electromagnetic 135 | 6 56 73 Robot Hit Streak 16 | 2 6 16 Robot Miss Streak 5 | 1 4 5 Penetration Max . | . . . Secondary Targets . | . . . Shots Hit Robots 139 | 4 69 66 Core Hits 62 | 2 26 34 Critical Kills . | . . . Critical Parts Destroyed . | . . . Critical Strikes 3 | . . 3 Corrupt 3 | . . 3 Melee Attacks 18 | . 8 10 Impact . | . . . Slashing . | . . . Piercing . | . . . Sneak Attacks 15 | . 8 7 Combat Hostiles . | . . . Follow-up Attacks . | . . . Damage Inflicted 3327 | 96 1210 2021 Guns 907 | 52 855 . Cannons 1558 | . . 1558 Explosions 843 | 44 341 458 Melee . | . . . Ramming 19 | . 14 5 Kinetic 172 | . 172 . Thermal 741 | 44 325 372 Explosive . | . . . Electromagnetic 2395 | 52 699 1644 Impact . | . . . Slashing . | . . . Piercing . | . . . Highest Corruption . | . . . Average Corruption . | . . . Corruption Purged . | . . . Corruption Blocked . | . . . Overload Shots . | . . . Overflow Damage 93 | . 36 57 Projectiles 57 | . . 57 Explosions 36 | . 36 . Melee . | . . . Knockbacks . | . . . Impact . | . . . Kinetic . | . . . Secondary . | . . . Self-Inflicted Damage 139 | . 120 19 Shots 5 | . 4 1 Rammed 15 | 2 5 8 Targets Rammed 16 | 2 6 8 Kicked . | . . . Crushed 1 | . 1 . Highest Temperature 252 | . 252 140 Average Temperature 62 | . 88 35 Received Heat Transfer 804 | . 375 429 Effects 1 | . 1 . Interference 1 | . 1 . Siege Activations . | . . . Robots Corrupted 2 | . 2 . Combat Hostiles 1 | . 1 . Parts Fried 13 | . 3 10 Impact Corruptions . | . . . Robots Melted . | . . . Combat Hostiles . | . . . Parts Melted 2 | . 1 1 Heat Transferred 1061 | 50 461 550 Parts Sabotaged . | . . . Parts Stolen . | . . . Parts Stripped . | . . . Power Chain Reactions 11 | 1 6 4 Alert | -11 -10 -9 ------- Run | Yrd Mat Mat Peak Influence 331 | 5 251 331 Initial 13 | . 3 13 Average 93 | 4 65 153 Maximum Alert Level 1 | . 1 1 Low Security (%) 88 | 100 97 73 Level 1 11 | . 2 26 Level 2 . | . . . Level 3 . | . . . Level 4 . | . . . Level 5 . | . . . High Security . | . . . Max Security . | . . . Squads Dispatched 5 | . 3 2 Investigation 1 | . 1 . Extermination . | . . . Reinforcement 4 | . 2 2 Assault . | . . . Garrison . | . . . Intercept . | . . . Searches Triggered . | . . . Construction Impeded . | . . . Haulers Reinforced . | . . . Active Scanning Responses . | . . . Cargo Convoy Interrupts . | . . . Stealth | -11 -10 -9 --------- Run | Yrd Mat Mat Distress Signals 3 | . 1 2 Communications Jammed . | . . . Distress Signals . | . . . Times Spotted 52 | . 18 34 Peak Tracking Total 5 | . 3 5 Tactical Retreats 4 | . 1 3 Traps | -11 -10 -9 ------- Run | Yrd Mat Mat Traps Triggered 2 | . 2 . Indirectly . | . . . Trap Hack Attempts . | . . . Triggered . | . . . Disarmed . | . . . Reprogrammed . | . . . Reused . | . . . Traps Extracted . | . . . Installed . | . . . Triggered . | . . . Machines | -11 -10 -9 ---------- Run | Yrd Mat Mat Machines Disabled 6 | . 3 3 Max in Single Turn 2 | . 2 1 Machines Repaired . | . . . Machines Dismantled . | . . . Machines Sabotaged . | . . . Overloaded Fab Kills . | . . . Hacking | -11 -10 -9 --------- Run | Yrd Mat Mat Machines Accessed 8 | . 4 4 Terminals 7 | . 3 4 Fabricators . | . . . Repair Stations . | . . . Recycling Units 1 | . 1 . Scanalyzers . | . . . Garrison Access . | . . . Total Hacks 33 | . 8 25 Successful 22 | . 5 17 Failed 9 | . 3 6 Catastrophic 1 | . 1 . Database Lockouts 2 | . . 2 Manual 22 | . 17 5 Terminals 32 | . 7 25 Fabricators . | . . . Repair Stations . | . . . Recycling Units 1 | . 1 . Scanalyzers . | . . . Garrison Access . | . . . Terminal Hacks 21 | . 4 17 Record 10 | . 3 7 Robot Analysis 2 | . 1 1 Prototype ID Bank 1 | . . 1 Branch Access Points 1 | . . 1 Alert Level 2 | . . 2 Locate Traps 2 | . . 2 Dispatch Records 1 | . . 1 Security Status 1 | . . 1 Transport Status 1 | . . 1 Fabricator Hacks . | . . . Repair Station Hacks . | . . . Recycling Unit Hacks . | . . . Scanalyzer . | . . . Garrison Access Hacks . | . . . Unauthorized Hacks 1 | . 1 . Terminals . | . . . Fabricators . | . . . Repair Stations . | . . . Recycling Units 1 | . 1 . Tunnel 1 | . 1 . Scanalyzers . | . . . Garrison Access . | . . . Data Cores Recovered . | . . . Used . | . . . Hacking Detections 8 | . 4 4 Full Trace Events . | . . . Feedback Events . | . . . Feedback Blocked . | . . . Robot Schematics Acquired . | . . . Robots Built . | . . . Authchips . | . . . Time . | . . . Total Robot Build Rating . | . . . Part Schematics Acquired . | . . . Parts Built . | . . . Authchips . | . . . Time . | . . . Total Part Build Rating . | . . . Parts Repaired . | . . . Time . | . . . Parts Recycled . | . . . Recycled Matter . | . . . Retrieved Matter . | . . . Retrieved Components . | . . . Parts Scanalyzed . | . . . Part Schematics Acquired . | . . . Parts Damaged . | . . . Bothacking | -11 -10 -9 ------------ Run | Yrd Mat Mat Used RIF Installer . | . . . Robots Hacked 7 | . 3 4 Non-combat 5 | . 3 2 Combat 2 | . . 2 Robot Hacks Applied 7 | . 3 4 parse_system 4 | . 1 3 no_distress 2 | . 1 1 find_recycling 1 | . 1 . Relay Couplers Released . | . . . Fabnet Peak Effective % . | . . . Robots Rewired . | . . . Allies Hacked . | . . . Hacks Repelled . | . . . Allies | -11 -10 -9 -------- Run | Yrd Mat Mat Total Allies . | . . . Largest Group . | . . . Highest-Rated Group . | . . . Highest-Rated Ally . | . . . Total Orders . | . . . Ally Attacks . | . . . Total Damage . | . . . Kills . | . . . Allies Corrupted . | . . . Allies Melted . | . . . Intel | -11 -10 -9 ------- Run | Yrd Mat Mat Robot Analysis Total 2 | . 1 1 Derelict Logs Recovered . | . . . Drone Launches . | . . . Drone Recoveries . | . . . Exploration | -11 -10 -9 ------------- Run | Yrd Mat Mat Turns Passed 3429 | 137 2102 1190 Spaces Moved 1735 | 71 1119 545 Core 46 | 12 34 . Treads 1689 | 59 1085 545 Legs . | . . . Wheels . | . . . Hover . | . . . Flight . | . . . Fastest Speed 50 | 50 160 160 Average Speed 162 | 148 164 160 Slowest Speed 450 | 160 450 240 Overloaded Moves . | . . . Propulsion Burnouts . | . . . Robots Hopped . | . . . Cave-ins Triggered . | . . . Exploration Rate (%) 45 | 4 80 52 Regions Visited 2 Branch Regions . Pre-discovered Areas 1 | . 1 . Known Exits Taken . | . . . Unknown Exits Taken 2 | 1 1 . Scrap Searched . | . . . Spaces Dug . | . . . Terrain Destroyed 30 | 4 18 8 Melee . | . . . Projectile . | . . . AOE 30 | 4 18 8 Terrain Rammed . | . . . Walls Destroyed . | . . . Machines Disabled . | . . . Actions | -11 -10 -9 --------- Run | Yrd Mat Mat Total 2142 | 95 1277 770 Wait 107 | . 27 80 Move 1733 | 70 1118 545 Hop . | . . . Pick Up 43 | 10 20 13 Fast Attach 23 | 3 11 9 Attach 16 | 3 5 8 Detach 1 | . 1 . Swap 8 | . 4 4 Drop 36 | 1 13 22 Fire 142 | 6 64 72 Melee 18 | . 8 10 Ram 5 | . 1 4 Kick . | . . . Crush 10 | 2 5 3 Escape Stasis . | . . . Rewire . | . . . Trap . | . . . Miscellaneous . | . . . Route ------- -11/Scrapyard -10/Materials (discovered 4 exits: *Mat x3 / [*Min]) -9/Materials (discovered 3 exits: [*Mat x2] / Min) History --------- Turn | Location | Event 23 | -11/Scrapyard | Discovered new exit (range 16) 138 | -11/Scrapyard | Entered Materials 315 | -10/Materials | Build established: Mutant 350 | -10/Materials | Discovered new exit (range 3) 712 | -10/Materials | Discovered new exit (range 15) 762 | -10/Materials | Discovered new exit (range 13) 1043 | -10/Materials | Discovered new exit (range 8) 1275 | -10/Materials | Build established: Scavenger-Mutant 1677 | -10/Materials | Build established: Mutant 2240 | -10/Materials | Entered another Materials area 2240 | -9/Materials | Evolved 2 slots: Propulsion x1, Utility x1 2613 | -9/Materials | Central database locked down 2797 | -9/Materials | Central database locked down 2845 | -9/Materials | Discovered new exit (range 4) 3048 | -9/Materials | Identified exit to Mines 3107 | -9/Materials | Discovered new exit (range 13) 3229 | -9/Materials | Lost 3 parts (1n2w) 3329 | -9/Materials | Core integrity fell below 50% 3379 | -9/Materials | Core integrity fell below 20% 3430 | -9/Materials | Core destroyed Last Messages --------------- 03386_ S-10 Pest destroyed. 03386_ R-06 Scavenger collects Corrupted Lgt. Assault Rifle. 03387_ EM Pulse Cannon destroyed. 03388_ K-01 Serf collects debris. 03391_ K-01 Serf cleans the Processing Tank. 03406_ Slammed into S-10 Pest. 03408_ K-01 Serf cleans the Processing Tank. 03409_ Slammed into S-10 Pest. 03411_ K-01 Serf cleans the Processing Tank. 03414_ Lgt. Treads destroyed. 03414_ Slammed into S-10 Pest. 03416_ K-01 Serf cleans the Processing Tank. 03418_ Slammed into S-10 Pest. 03421_ K-01 Serf collects debris. 03422_ Slammed into S-10 Pest. 03423_ K-01 Serf cleans the Processing Tank. 03426_ Slammed into S-10 Pest. 03427_ K-01 Serf cleans the Processing Tank. 03430_ Slammed into S-10 Pest. 03430_ Destabilizing: Core damaged (-16). Map ----- +----------------------------------------------------+ | ???????????????????????????????# # #??????? | | ???????????????????????????????# """ # #??????? | | ???????????????????????????????# """ +% ######## | | ???????????????????????????????# """!# ! % | | ???????????????????????????????# #%= %[ | | ???????????????????????????????# # | | ???????????????????????????????#########+######### | | ??????????????????????????????????# #?# | | ??????????????????????????????????# #?# | | ??????????????????????????????????# """"" #?# | | ??????????????????????????????????# """"" #?# | | ??????????????????????????????????# """"" #?# | | ??????????????????????????????????# """ #?# | | ??????????????????? ??????????????# #?## | | ??????????????????"""?????????????################ | | ??????????????#???"""?????????????# | | ??????????????# """ ????????????# | | ??????????????# """ ????????????# | | ??????????????# """ ?########### | | ??????????????# ^ ?# ## | | ??????????????? # ## | | ??????????????? """ # k ## """"" """"" | | ??????????????? """ /k""" ## """"" """"" | | ??????????????? """ #k""" +% """"" """"" | | ???????????????? """ #%""" ## | | ???????????????? """ ?#@""" ## | | ????????????????? ?#s""" ## ####### ## | | ???????????????? ??#%%% ## #????# # | | ??????????????? "Y" ########### #????# # | | ?????????????? """ #????# # | | ?????????????? #????# # | | ?????????????? ?? #????# # | | ????????????? ????##?############## #????## ## | | ??????????????????????????????????# ##????# #? | | ??????????????????????????????????# # # #? | | ??????????????????????????????????#*= #]] +% #? | | ??????????????????????????????????#% =#] # #? | | ???????????????????################ # # #? | | ?????????????????? % ####### ## | | ?????????????????? %#????# # | | ?????????????????? %% #????# | | ????????????????????# #????# T | | ????????????????????# %! %! ]] #????# | | ????????????????????# * ]] #????# # | | ????????????????????# ]] #????# ##### | | ????????????????????# !!! #????# #???? | | ????????????????????+ !!! #????# #???? | | ????????????????????# !!! #????# #???? | | ????????????????????### ######## #????# #???? | | ??????????????????????# ???????# #????#*#???? | +----------------------------------------------------+ Best States ------------- Heat Dissipation 28 Energy Generation 14 Energy Capacity 250 Matter Stores 300 Matter Capacity 300 Sight Range 16 Terrain Scan Density 10 Utility Shielding 66 Evasion (%) 40 Recoil Reduction 3 Offensive Hacking 10 Item Schematics ----------------- None Robot Schematics ------------------ None Fabricated ------------ Nothing Alien Tech Used ----------------- None Achievements -------------- None Challenges ------------ None Game ------ Seed GravitonGrenadeMediator Manual? 0 Play Time 00:47:39 Cumulative 19.5 hours Start 2024.04.11 @ 21:34:42 End 2024.04.12 @ 10:05:16 Sessions 4 Manual Loads 0 Difficulty Rogue Special Mode None Game No. 15 Rogue 14 Adventurer 0 Explorer 1 Win Type - Total 0 Types 0/0/0/0/0/0/0/0/0 Lore% 9 Gallery% 21 Achievement% 15 Wizard Run 0 Options --------- Layout 0 ASCII 0 Keyboard 0 Movement Numpad Keybinds 0 Fullscreen 2 Font 24/Smallcaps Map View 76x50 Zoom Use 0% Tactical HUD 1 Map Filters NONE Filters NONE Steam 1 RUN: fd964345-8d78-4b10-96a7-ce4dcc36b0f9